bitfinex/quotes_BTCUSD_20240723
["timestamp","ask_amount","ask_price","bid_price","bid_amount"]
[1721710979403,2.5844181,67052.0,67051.0,6.8e-07]
[1721710979712,2.5704181,67052.0,67051.0,6.8e-07]
[1721710980070,2.5954181,67052.0,67051.0,6.8e-07]
[1721710980493,2.5704181,67052.0,67051.0,6.8e-07]
[1721710980662,2.5844181,67052.0,67051.0,6.8e-07]
[1721710981191,2.30019386,67052.0,67051.0,6.8e-07]
[1721710981391,2.63385077,67052.0,67051.0,6.8e-07]
[1721710981827,2.29058821,67051.0,67050.0,6.8e-07]
[1721710982039,0.81943421,67044.0,67043.0,0.014]
[1721710982241,0.81943421,67044.0,67041.0,0.002]
[1721710982242,1.41050221,67041.0,67040.0,6e-07]
[1721710982441,2.80725577,67041.0,67040.0,6e-07]
[1721710982614,2.80446177,67041.0,67040.0,6e-07]
[1721710982853,2.65628205,67041.0,67040.0,6e-07]
[1721710983579,2.68328205,67041.0,67040.0,6e-07]
[1721710983789,2.66928205,67041.0,67040.0,6e-07]
[1721710984208,2.68079733,67041.0,67040.0,6e-07]
[1721710984433,2.66879733,67041.0,67040.0,6e-07]
[1721710984857,2.65579733,67041.0,67040.0,6e-07]
[1721710985123,1.99164933,67041.0,67040.0,6e-07]
[1721710985470,1.98164933,67041.0,67040.0,6e-07]
[1721710985865,1.99464933,67041.0,67040.0,6e-07]
[1721710986240,2.13834382,67041.0,67040.0,6e-07]
[1721710986463,2.00664933,67041.0,67040.0,6e-07]
[1721710986632,2.13333374,67041.0,67040.0,6e-07]
[1721710986845,2.00764933,67041.0,67040.0,6e-07]
[1721710987281,2.00758642,67041.0,67040.0,6e-07]
[1721710988266,2.00158642,67041.0,67040.0,6e-07]
[1721710988459,2.01258642,67041.0,67040.0,6e-07]
[1721710988934,2.1442516,67041.0,67040.0,6e-07]
[1721710989135,2.01258642,67041.0,67040.0,6e-07]
[1721710989340,1.81818642,67041.0,67040.0,0.0803006]
[1721710989539,0.64495284,67041.0,67040.0,0.1447006]
[1721710989739,0.86980863,67041.0,67040.0,0.1447006]
[1721710989943,1.16813263,67041.0,67040.0,0.1447006]
[1721710990170,0.80771341,67041.0,67040.0,0.1447006]
[1721710990330,0.8757847,67041.0,67040.0,0.15917066]
[1721710990526,0.5774607,67041.0,67040.0,0.15917066]
[1721710990921,0.006,67041.0,67040.0,0.51288636]
[1721710991121,0.08782414,67051.0,67040.0,0.51288636]
[1721710991122,0.04391207,67051.0,67047.0,0.0775]
[1721710991331,0.745722,67049.0,67048.0,0.161]
[1721710991809,0.745722,67049.0,67048.0,0.138]
[1721710991810,0.747722,67049.0,67048.0,0.138]
[1721710991962,0.87168023,67049.0,67048.0,0.138]
[1721710992163,0.98002488,67049.0,67048.0,0.138]
[1721710992373,0.91360385,67049.0,67048.0,0.138]
[1721710992733,0.86968023,67049.0,67048.0,0.138]
[1721710993163,0.87068023,67049.0,67048.0,0.138]
[1721710993368,0.87067856,67049.0,67048.0,0.138]
[1721710993543,0.86967856,67049.0,67048.0,0.138]
[1721710993776,0.746722,67049.0,67048.0,0.138]
[1721710993975,0.747722,67049.0,67048.0,0.138]
[1721710995059,0.746722,67049.0,67048.0,0.138]
[1721710995477,0.747722,67049.0,67048.0,0.138]
[1721710996241,0.448433,67049.0,67048.0,0.1518]
[1721710996457,0.747722,67049.0,67048.0,0.1518]
[1721710996682,0.747722,67049.0,67048.0,0.138]
[1721710996954,0.746722,67049.0,67048.0,0.138]
[1721710997106,0.449433,67049.0,67048.0,0.138]
[1721710997504,0.746722,67049.0,67048.0,0.138]
[1721710997730,0.449433,67049.0,67048.0,0.138]
[1721710997894,0.449433,67049.0,67048.0,0.1518]
[1721710998296,0.52192242,67049.0,67048.0,0.138]
[1721710998501,0.79219021,67049.0,67048.0,0.138]
[1721710998698,0.79019021,67049.0,67048.0,0.138]
[1721710999324,0.83609776,67049.0,67048.0,0.138]
[1721710999527,0.83409776,67049.0,67048.0,0.138]
[1721710999727,0.79119021,67049.0,67048.0,0.138]
[1721710999931,0.79219021,67049.0,67048.0,0.138]
[1721711000147,1.08947921,67049.0,67048.0,0.138]
[1721711000359,1.09047921,67049.0,67048.0,0.138]
[1721711000557,1.09047921,67049.0,67048.0,0.0605]
[1721711000558,1.21443595,67049.0,67048.0,0.0605]
[1721711000931,1.32423597,67049.0,67048.0,0.0605]
[1721711001407,1.32323597,67049.0,67048.0,0.0605]
[1721711001571,1.21443595,67049.0,67048.0,0.0605]
[1721711001768,1.08860221,67041.0,67040.0,6e-07]
[1721711001977,1.27839697,67041.0,67040.0,6e-07]
[1721711002132,1.21255895,67041.0,67040.0,6e-07]
[1721711002333,1.2784193,67041.0,67040.0,6e-07]
[1721711002543,1.62822335,67041.0,67040.0,6e-07]
[1721711002991,1.62923447,67041.0,67040.0,6e-07]
[1721711003198,1.63023447,67041.0,67040.0,6e-07]
[1721711003404,1.62923447,67041.0,67040.0,6e-07]
[1721711003953,1.63723447,67041.0,67040.0,6e-07]
[1721711004481,1.63623447,67041.0,67040.0,6e-07]
[1721711004690,1.62823447,67041.0,67040.0,6e-07]
[1721711005008,1.63423447,67041.0,67040.0,6e-07]
[1721711005463,1.50424401,67041.0,67040.0,6e-07]
[1721711005645,1.62823312,67041.0,67040.0,6e-07]
[1721711006017,1.63923312,67041.0,67040.0,6e-07]
[1721711006218,1.63223312,67041.0,67040.0,6e-07]
[1721711006736,1.40437057,67041.0,67040.0,6e-07]
[1721711006940,1.40437039,67041.0,67040.0,6e-07]
[1721711007142,1.40837039,67041.0,67040.0,6e-07]
[1721711007501,1.32059132,67041.0,67040.0,6e-07]
[1721711007713,1.38242738,67041.0,67040.0,6e-07]
[1721711008356,1.25843798,67041.0,67040.0,6e-07]
[1721711008508,1.38241696,67041.0,67040.0,6e-07]
[1721711008713,1.38241696,67041.0,67040.0,0.0662006]
[1721711008924,1.33694875,67041.0,67040.0,0.0662006]
[1721711009352,1.37841696,67041.0,67040.0,0.0662006]
[1721711009778,0.93562475,67041.0,67040.0,0.1437006]
[1721711009978,0.93662475,67041.0,67040.0,0.15807066]
[1721711010223,0.79071037,67041.0,67040.0,0.15807066]
[1721711010425,0.91468208,67041.0,67040.0,0.15807066]
[1721711010627,0.79070682,67041.0,67040.0,0.15807066]
[1721711010823,0.79170682,67041.0,67040.0,0.15807066]
[1721711011177,0.91568061,67041.0,67040.0,0.1437006]
[1721711011384,0.74781,67041.0,67040.0,0.1437006]
[1721711013238,0.87178366,67041.0,67040.0,0.1437006]
[1721711013604,0.74781,67041.0,67040.0,0.1437006]
[1721711014005,0.9156825,67041.0,67040.0,0.1437006]
[1721711014488,0.87178471,67041.0,67040.0,0.1437006]
[1721711014690,0.87178369,67041.0,67040.0,0.1437006]
[1721711015107,0.74781,67041.0,67040.0,0.1437006]
[1721711015330,0.8717837,67041.0,67040.0,0.1437006]
[1721711016274,0.151162,67041.0,67040.0,0.18107066]
[1721711016473,0.74781,67041.0,67040.0,0.18107066]
[1721711016685,0.74981,67041.0,67040.0,0.1667006]
[1721711016884,0.449486,67041.0,67040.0,0.1667006]
[1721711017289,0.74781,67041.0,67040.0,0.1667006]
[1721711017546,0.74781,67041.0,67040.0,0.0662006]
[1721711017547,1.046134,67041.0,67040.0,0.0662006]
[1721711017749,1.21456873,67041.0,67040.0,6e-07]
[1721711017950,1.25846808,67041.0,67040.0,6e-07]
[1721711018123,1.21456873,67041.0,67040.0,6e-07]
[1721711018530,1.21356873,67041.0,67040.0,6e-07]
[1721711018733,1.52921053,67041.0,67040.0,6e-07]
[1721711018935,1.61700923,67041.0,67040.0,6e-07]
[1721711019109,1.52921053,67041.0,67040.0,6e-07]
[1721711019910,1.52821053,67041.0,67040.0,6e-07]
[1721711020142,1.53021053,67041.0,67040.0,6e-07]
[1721711020342,1.53023402,67041.0,67040.0,6e-07]
[1721711020552,1.52823402,67041.0,67040.0,6e-07]
[1721711020891,1.63898685,67041.0,67040.0,6e-07]
[1721711021554,1.53323299,67041.0,67040.0,6e-07]
[1721711021756,1.64299039,67041.0,67040.0,6e-07]
[1721711022165,1.53223299,67041.0,67040.0,6e-07]
[1721711022521,1.53623299,67041.0,67040.0,6e-07]
[1721711022772,1.52823299,67041.0,67040.0,6e-07]
[1721711023168,1.53123299,67041.0,67040.0,6e-07]
[1721711023772,1.5312328,67041.0,67040.0,6e-07]
[1721711023936,1.63799268,67041.0,67040.0,6e-07]
[1721711024303,1.64099268,67041.0,67040.0,6e-07]
[1721711024644,1.63799268,67041.0,67040.0,6e-07]
[1721711024846,1.63899268,67041.0,67040.0,6e-07]
[1721711025188,1.63899223,67041.0,67040.0,6e-07]
[1721711025404,1.63799223,67041.0,67040.0,6e-07]
[1721711025606,1.5282328,67041.0,67040.0,6e-07]
[1721711025818,1.64199404,67041.0,67040.0,6e-07]
[1721711026304,1.5362328,67041.0,67040.0,6e-07]
[1721711026659,1.5322328,67041.0,67040.0,6e-07]
[1721711027081,1.64199478,67041.0,67040.0,6e-07]
[1721711027482,1.63799478,67041.0,67040.0,6e-07]
[1721711028104,1.63999478,67041.0,67040.0,6e-07]
[1721711028305,1.64099478,67041.0,67040.0,6e-07]
[1721711028727,1.53123095,67041.0,67040.0,6e-07]
[1721711029286,1.52923095,67041.0,67040.0,6e-07]
[1721711029715,1.53123095,67041.0,67040.0,6e-07]
[1721711030124,1.53123196,67041.0,67040.0,6e-07]
[1721711030371,1.53323196,67041.0,67040.0,6e-07]
[1721711031011,1.52623196,67041.0,67040.0,6e-07]
[1721711031211,1.21259016,67041.0,67040.0,0.0665006]
[1721711031420,1.21359016,67041.0,67040.0,0.0665006]
[1721711032235,1.51191416,67041.0,67040.0,6e-07]
[1721711032631,1.60993196,67041.0,67040.0,6e-07]
[1721711032827,2.23178251,67041.0,67040.0,6e-07]
[1721711033252,2.23200566,67041.0,67040.0,6e-07]
[1721711034333,2.23800566,67041.0,67040.0,6e-07]
[1721711034539,2.23200566,67041.0,67040.0,6e-07]
[1721711035390,2.23800566,67041.0,67040.0,6e-07]
[1721711036047,2.24500566,67041.0,67040.0,6e-07]
[1721711036270,1.96146801,67041.0,67040.0,6e-07]
[1721711036488,2.24554849,67041.0,67040.0,6e-07]
[1721711036720,2.23854849,67041.0,67040.0,6e-07]
[1721711037008,2.24654849,67041.0,67040.0,6e-07]
[1721711037185,2.24054849,67041.0,67040.0,6e-07]
[1721711038219,2.24754849,67041.0,67040.0,6e-07]
[1721711038755,2.24054849,67041.0,67040.0,6e-07]
[1721711039106,2.24854849,67041.0,67040.0,6e-07]
[1721711039300,2.24054584,67041.0,67040.0,6e-07]
[1721711039659,2.24854584,67041.0,67040.0,6e-07]
[1721711039778,1.72594752,67041.0,67040.0,6e-07]
[1721711039978,1.79632184,67041.0,67040.0,6e-07]
[1721711040479,1.64524752,67041.0,67040.0,6e-07]
[1721711040856,1.80521698,67041.0,67040.0,6e-07]
[1721711041062,1.79721698,67041.0,67040.0,6e-07]
[1721711041241,1.92699149,67041.0,67040.0,6e-07]
[1721711041649,1.80956801,67041.0,67040.0,6e-07]
[1721711041855,2.23322377,67041.0,67040.0,6e-07]
[1721711042054,2.23722377,67041.0,67040.0,6e-07]
[1721711042254,2.58554777,67041.0,67040.0,6e-07]
[1721711042665,2.30989201,67041.0,67040.0,6e-07]
[1721711042877,2.59337178,67041.0,67040.0,6e-07]
[1721711043276,2.64737178,67041.0,67040.0,6e-07]
[1721711043486,2.63137178,67041.0,67040.0,6e-07]
[1721711043682,2.63837178,67041.0,67040.0,6e-07]
[1721711043879,2.65237178,67041.0,67040.0,6e-07]
[1721711044425,2.63137178,67041.0,67040.0,6e-07]
[1721711044643,2.64537178,67041.0,67040.0,6e-07]
[1721711044833,2.64359603,67041.0,67040.0,0.0009246]
[1721711045872,2.65759603,67041.0,67040.0,0.0009246]
[1721711046019,2.60759603,67041.0,67040.0,0.0009246]
[1721711046857,2.59359603,67041.0,67040.0,0.0009246]
[1721711047037,2.62959603,67041.0,67040.0,0.0009246]
[1721711047402,2.64359603,67041.0,67040.0,0.0009246]
[1721711047588,2.65759603,67041.0,67040.0,0.0009246]
[1721711047794,2.65760962,67041.0,67040.0,0.0009246]
[1721711047992,1.68539821,67035.0,67034.0,9e-05]
[1721711048225,2.62271026,67035.0,67034.0,9e-05]
[1721711048437,2.42450117,67035.0,67034.0,9e-05]
[1721711048611,2.77285217,67035.0,67034.0,9e-05]
[1721711048786,2.72285217,67035.0,67034.0,9e-05]
[1721711048994,2.77285217,67035.0,67034.0,9e-05]
[1721711049196,2.03383421,67032.0,67031.0,0.002]
[1721711049401,2.03383421,67032.0,67021.0,0.002]
[1721711049402,0.45126821,67024.0,67021.0,0.002]
[1721711049575,1.34267357,67024.0,67021.0,0.002]
[1721711049760,2.31917292,67024.0,67021.0,0.002]
[1721711049960,2.42557079,67024.0,67021.0,0.002]
[1721711050395,2.72397079,67024.0,67023.0,1e-06]
[1721711050612,0.27177921,67019.0,67009.0,0.00924]
[1721711050811,0.49214921,67012.0,67009.0,0.00924]
[1721711051012,1.78788472,67012.0,67009.0,0.00924]
[1721711051210,0.2,67004.0,67001.0,0.002]
[1721711051414,1.70969489,67004.0,67001.0,0.002]
[1721711051619,2.70516189,67004.0,67001.0,0.002]
[1721711051837,1.08921121,67002.0,67001.0,0.002]
[1721711052038,1.81386179,67002.0,67001.0,0.002]
[1721711052238,1.65667254,67002.0,67001.0,0.002]
[1721711053076,1.35817454,67002.0,67001.0,0.002]
[1721711053286,1.01476278,67002.0,67001.0,0.002]
[1721711053525,1.32626967,67002.0,67001.0,0.01887296]
[1721711053717,1.31326967,67002.0,67001.0,0.01887296]
[1721711053924,1.02077167,67002.0,67001.0,0.002]
[1721711054338,0.011,67002.0,67001.0,0.1505]
[1721711054806,0.006,67002.0,67001.0,0.15349893]
[1721711055014,0.006,67002.0,67001.0,0.17896179]
[1721711055435,0.149247,67003.0,67001.0,0.11246179]
[1721711055643,0.447747,67002.0,67001.0,0.08699893]
[1721711055859,0.752245,67002.0,67001.0,0.08699893]
[1721711056073,0.79071321,67002.0,67001.0,0.14699893]
[1721711056288,0.78971321,67002.0,67001.0,0.14699893]
[1721711056773,0.79271321,67002.0,67001.0,0.14699893]
[1721711056973,0.79071321,67002.0,67001.0,0.14699893]
[1721711057125,0.78971321,67002.0,67001.0,0.14699893]
[1721711057532,0.79071321,67002.0,67001.0,0.14699893]
[1721711057759,0.79271321,67002.0,67001.0,0.14699893]
[1721711058169,0.79171321,67002.0,67001.0,0.144]
[1721711058340,1.08921121,67002.0,67001.0,0.062]
[1721711058538,1.09021121,67002.0,67001.0,0.062]
[1721711058913,1.09121121,67002.0,67001.0,0.062]
[1721711059222,1.11187024,67002.0,67001.0,0.002]
[1721711059402,1.41136824,67002.0,67001.0,0.002]
[1721711059651,1.53542173,67002.0,67001.0,0.002]
[1721711059853,1.53442173,67002.0,67001.0,0.002]
[1721711060062,1.53542173,67002.0,67001.0,0.002]
[1721711060194,1.23592373,67002.0,67001.0,0.002]
[1721711060398,1.11087024,67002.0,67001.0,0.002]
[1721711060822,1.11487024,67002.0,67001.0,0.002]
[1721711061444,1.11087024,67002.0,67001.0,0.002]
[1721711061650,1.11387024,67002.0,67001.0,0.002]
[1721711061832,1.11887024,67002.0,67001.0,0.002]
[1721711062193,1.23792199,67002.0,67001.0,0.002]
[1721711062529,1.23792122,67002.0,67001.0,0.002]
[1721711063002,1.35417024,67002.0,67001.0,0.002]
[1721711063168,1.4782225,67002.0,67001.0,0.002]
[1721711063370,1.4159225,67002.0,67001.0,0.002]
[1721711063809,0.7379265,67002.0,67001.0,0.002]
[1721711064177,1.0364245,67002.0,67001.0,0.002]
[1721711064432,0.7449265,67002.0,67001.0,0.002]
[1721711064953,0.7379265,67002.0,67001.0,0.002]
[1721711065301,0.7459265,67002.0,67001.0,0.002]
[1721711065734,0.7379265,67002.0,67001.0,0.068]
[1721711067328,0.7379265,67002.0,67001.0,0.09243296]
[1721711067329,0.4394285,67002.0,67001.0,0.09243296]
[1721711067599,0.4394285,67002.0,67001.0,0.068]
[1721711067805,0.26852047,67002.0,67001.0,0.068]
[1721711068006,0.26652047,67002.0,67001.0,0.068]
[1721711068211,0.22405226,67002.0,67001.0,0.068]
[1721711068422,0.1,67002.0,67001.0,0.068]
[1721711068647,0.04246821,67003.0,67001.0,0.068]
[1721711069063,0.04246821,67003.0,67001.0,0.09243296]
[1721711069273,0.1,67007.0,67001.0,0.09243296]
[1721711069494,0.04246821,67013.0,67004.0,0.298488]
[1721711069696,0.12402861,67012.0,67006.0,0.0828]
[1721711069897,0.002794,67015.0,67011.0,0.148228]
[1721711070113,0.4756,67016.0,67015.0,0.14922]
[1721711070775,0.001,67013.0,67012.0,0.523881]
[1721711070987,0.001,67013.0,67012.0,0.62387007]
[1721711071209,0.4756,67016.0,67013.0,0.149222]
[1721711071632,0.4766,67016.0,67015.0,0.002]
[1721711071865,0.4766,67016.0,67015.0,0.04203921]
[1721711072461,0.4766,67016.0,67015.0,0.19125921]
[1721711072695,0.4766,67016.0,67015.0,0.19025921]
[1721711072926,0.4766,67016.0,67015.0,0.04103921]
[1721711073171,0.4766,67016.0,67015.0,0.10353921]
[1721711073414,0.4766,67016.0,67015.0,0.10553921]
[1721711073650,0.001,67016.0,67015.0,0.10153921]
[1721711074454,0.002,67016.0,67015.0,0.10453921]
[1721711074673,0.003,67016.0,67015.0,0.10753921]
[1721711075187,0.003,67016.0,67015.0,0.10453921]
[1721711075188,0.002,67016.0,67015.0,0.10453921]
[1721711075940,0.04246821,67017.0,67015.0,0.10153921]
[1721711076182,0.001,67016.0,67015.0,0.10353921]
[1721711076659,0.002,67016.0,67015.0,0.10553921]
[1721711076891,0.002,67016.0,67015.0,0.0665]
[1721711077135,0.04246821,67017.0,67015.0,0.0625]
[1721711077369,0.001,67016.0,67015.0,0.0655]
[1721711077608,0.001,67016.0,67015.0,0.0675]
[1721711077845,0.19168421,67017.0,67015.0,0.0625]
[1721711078097,0.300424,67019.0,67015.0,0.002]
[1721711078098,0.81533291,67016.0,67015.0,0.002]
[1721711078585,1.53528836,67016.0,67015.0,0.002]
[1721711078587,1.61088836,67016.0,67015.0,0.002]
[1721711078983,0.79071321,67002.0,67000.0,0.05112964]
[1721711078985,1.23211121,67002.0,67000.0,0.05112964]
[1721711079216,1.29386055,67002.0,67000.0,0.05112964]
[1721711079441,0.79071321,67002.0,67000.0,0.05112964]
[1721711079681,0.78871321,67002.0,67000.0,0.05112964]
[1721711080167,0.79071321,67002.0,67000.0,0.05112964]
[1721711080366,1.11087024,67002.0,67000.0,0.05112964]
[1721711080601,1.21087024,67002.0,67000.0,0.05112964]
[1721711080794,1.21187024,67002.0,67001.0,0.004]
[1721711081001,1.21187024,67002.0,67001.0,0.002]
[1721711081434,1.21187024,67002.0,67001.0,0.005]
[1721711081797,1.97031653,67002.0,67001.0,0.002]
[1721711081996,1.77031653,67002.0,67001.0,0.002]
[1721711082375,1.79368746,67002.0,67001.0,0.008]
[1721711082577,1.79268746,67002.0,67001.0,0.006]
[1721711082988,1.79268746,67002.0,67001.0,0.008]
[1721711083190,1.79268746,67002.0,67001.0,0.006]
[1721711083398,1.76931653,67002.0,67001.0,0.002]
[1721711083623,1.47783208,67002.0,67001.0,0.002]
[1721711084480,1.48283208,67002.0,67001.0,0.002]
[1721711084630,1.48683208,67002.0,67001.0,0.002]
[1721711085061,1.48283208,67002.0,67001.0,0.002]
[1721711085264,1.78133008,67002.0,67001.0,0.002]
[1721711085453,1.78433008,67002.0,67001.0,0.002]
[1721711085649,1.47383208,67002.0,67001.0,0.002]
[1721711086035,1.47683208,67002.0,67001.0,0.002]
[1721711086473,1.77533008,67002.0,67001.0,0.002]
[1721711086674,1.77833008,67002.0,67001.0,0.002]
[1721711086879,1.41903208,67002.0,67001.0,0.002]
[1721711087465,1.41003208,67002.0,67001.0,0.002]
[1721711087847,1.41403208,67002.0,67001.0,0.002]
[1721711088051,1.71253008,67002.0,67001.0,0.002]
[1721711088249,1.70853008,67002.0,67001.0,0.002]
[1721711088466,1.41003208,67002.0,67001.0,0.002]
[1721711088658,1.41303208,67002.0,67001.0,0.002]
[1721711089159,1.41003208,67002.0,67001.0,0.002]
[1721711089319,1.45385762,67002.0,67001.0,0.002]
[1721711089519,1.75235562,67002.0,67001.0,0.002]
[1721711089728,1.75509583,67002.0,67001.0,0.002]
[1721711089943,1.77846654,67002.0,67001.0,0.002]
[1721711090321,1.70826484,67002.0,67001.0,0.002]
[1721711090440,1.79738205,67002.0,67001.0,0.002]
[1721711090654,1.80338311,67002.0,67001.0,0.002]
[1721711090874,1.73763556,67002.0,67001.0,0.002]
[1721711091086,1.73463556,67002.0,67001.0,0.002]
[1721711091297,1.71126484,67002.0,67001.0,0.002]
[1721711091498,1.73463571,67002.0,67001.0,0.002]
[1721711091708,1.71126484,67002.0,67001.0,0.002]
[1721711091940,1.77706484,67002.0,67001.0,0.002]
[1721711092153,1.8661833,67002.0,67001.0,0.002]
[1721711092481,1.80043575,67002.0,67001.0,0.002]
[1721711092691,1.79743575,67002.0,67001.0,0.002]
[1721711092892,1.8005405,67002.0,67001.0,0.002]
[1721711093300,1.8475405,67002.0,67001.0,0.002]
[1721711093503,2.0048405,67002.0,67001.0,0.002]
[1721711093717,2.10923846,67002.0,67001.0,0.002]
[1721711093921,2.21216663,67002.0,67001.0,0.002]
[1721711094047,2.29667668,67002.0,67001.0,0.002]
[1721711094258,2.16516663,67002.0,67001.0,0.002]
[1721711094662,2.21516663,67002.0,67001.0,0.002]
[1721711095088,2.51366463,67002.0,67001.0,0.002]
[1721711095293,2.46366463,67002.0,67001.0,0.002]
[1721711095501,2.16516663,67002.0,67001.0,0.002]
[1721711095695,2.46366463,67002.0,67001.0,0.002]
[1721711095936,2.16557925,67002.0,67001.0,0.002]
[1721711096366,1.83623421,67001.0,67000.0,0.05112964]
[1721711096543,2.40715994,67001.0,67000.0,0.01589104]
[1721711096878,2.40715994,67001.0,66995.0,0.25514876]
[1721711096879,1.27790521,66996.0,66995.0,0.25514876]
[1721711097083,2.52634368,66996.0,66995.0,0.25514876]
[1721711097364,2.54341509,66996.0,66995.0,0.25514876]
[1721711097546,2.28885507,66996.0,66995.0,0.25514876]
[1721711097777,2.34024079,66996.0,66995.0,0.25514876]
[1721711097968,1.99033007,66996.0,66995.0,0.25514876]
[1721711098183,1.84435463,66996.0,66995.0,0.25514876]
[1721711098399,1.82244351,66996.0,66995.0,0.25514876]
[1721711098811,1.81971694,66996.0,66995.0,0.25514876]
[1721711099257,1.37510143,66996.0,66995.0,0.25514876]
[1721711099458,1.33329392,66996.0,66995.0,0.25514876]
[1721711099651,1.34529392,66996.0,66995.0,0.25514876]
[1721711099863,1.22335408,66996.0,66995.0,0.25514876]
[1721711100069,1.23735408,66996.0,66995.0,0.25514876]
[1721711100264,0.92482908,66996.0,66995.0,0.25514876]
[1721711100467,0.50225521,66996.0,66995.0,0.33434876]
[1721711100673,0.168262,66996.0,66995.0,0.42899632]
[1721711100995,0.156262,66996.0,66995.0,0.42899632]
[1721711101218,0.012,66996.0,66995.0,0.42899632]
[1721711101422,0.154262,66996.0,66995.0,0.39514876]
[1721711101623,0.34098621,66998.0,66995.0,0.39514876]
[1721711101624,0.149261,66997.0,66995.0,0.39514876]
[1721711101770,0.001,66996.0,66995.0,0.39514876]
[1721711101973,0.002,66996.0,66995.0,0.39514876]
[1721711102541,0.001,66996.0,66995.0,0.89528253]
[1721711103048,0.001,66997.0,66996.0,0.213862]
[1721711103288,0.001,66997.0,66996.0,0.33457723]
[1721711103488,0.001,66997.0,66996.0,0.33357723]
[1721711103702,0.001,66997.0,66996.0,0.63210223]
[1721711104163,0.001,66997.0,66996.0,1.08665902]
[1721711104382,0.149238,67007.0,67002.0,0.0775]
[1721711104635,0.149234,67009.0,67003.0,0.0633]
[1721711104838,0.04346821,67022.0,67013.0,0.1442]
[1721711105059,0.002,67026.0,67013.0,0.0809]
[1721711105060,0.298419,67020.0,67013.0,0.0809]
[1721711105278,0.14921,67020.0,67014.0,0.149222]
[1721711105492,0.14921,67020.0,67015.0,0.0576576]
[1721711105493,0.04346821,67016.0,67015.0,0.0576576]
[1721711105711,0.04346821,67016.0,67015.0,0.0566576]
[1721711106139,0.04302045,67016.0,67015.0,0.0566576]
[1721711106412,0.04302045,67016.0,67013.0,0.0809]
[1721711106627,0.149218,67016.0,67013.0,0.0809]
[1721711106841,0.149218,67016.0,67013.0,0.0799]
[1721711107269,0.149218,67016.0,67015.0,0.014]
[1721711107502,0.150218,67016.0,67015.0,0.014]
[1721711107701,0.14922,67015.0,67014.0,0.012]
[1721711108003,0.002,67016.0,67014.0,0.0615]
[1721711108182,0.001,67016.0,67014.0,0.07069]
[1721711108355,0.14922,67015.0,67014.0,0.0615]
[1721711108752,0.002,67016.0,67014.0,0.0615]
[1721711108753,0.001,67016.0,67014.0,0.0615]
[1721711109217,0.001,67016.0,67014.0,0.0745]
[1721711109218,0.15022,67015.0,67014.0,0.0745]
[1721711109418,0.001,67015.0,67014.0,0.0745]
[1721711109619,0.001,67015.0,67014.0,0.1048631]
[1721711110248,0.001,67015.0,67014.0,0.0918631]
[1721711110494,0.001,67016.0,67014.0,0.0615]
[1721711110694,0.15022,67016.0,67014.0,0.0735]
[1721711110898,0.15022,67016.0,67014.0,0.0875]
[1721711111063,0.15022,67016.0,67014.0,0.0755]
[1721711111064,0.14922,67016.0,67014.0,0.0755]
[1721711111360,0.1,67019.0,67015.0,0.01554]
[1721711111505,0.002794,67030.0,67022.0,0.1471]
[1721711111863,0.149189,67029.0,67023.0,0.149201]
[1721711112066,0.149189,67029.0,67023.0,0.24401236]
[1721711112262,0.4756,67031.0,67025.0,0.048]
[1721711112606,0.4756,67031.0,67027.0,0.149192]
[1721711112807,0.04302045,67036.0,67028.0,0.14919]
[1721711112808,0.149179,67034.0,67028.0,0.14919]
[1721711113008,0.298382,67028.0,67027.0,0.064]
[1721711113166,0.79097545,67028.0,67027.0,0.064]
[1721711114360,0.78997545,67028.0,67027.0,0.08666]
[1721711114560,0.448573,67028.0,67027.0,0.08666]
[1721711114791,0.001,67028.0,67027.0,0.08666]
[1721711114995,0.001,67028.0,67027.0,0.08966]
[1721711115424,0.001,67028.0,67027.0,0.19006]
[1721711115638,0.001,67028.0,67027.0,0.339253]
[1721711115877,0.002,67028.0,67027.0,0.20306]
[1721711116417,0.002,67028.0,67027.0,0.65064]
[1721711116553,0.027,67028.0,67027.0,0.20306]
[1721711116803,0.028,67028.0,67027.0,0.2004]
[1721711117041,0.177191,67028.0,67027.0,0.1774]
[1721711117271,0.028,67028.0,67027.0,0.2004]
[1721711117512,0.028,67028.0,67027.0,0.23605786]
[1721711117972,0.028,67028.0,67027.0,0.38525086]
[1721711118176,0.028,67028.0,67027.0,0.23605786]
[1721711118380,0.028,67028.0,67027.0,0.2004]
[1721711121006,0.028,67028.0,67027.0,0.35657255]
[1721711121330,0.028,67028.0,67027.0,1.19836646]
[1721711123176,0.025,67028.0,67027.0,1.46375346]
[1721711123335,0.025,67028.0,67027.0,1.62471611]
[1721711123810,0.025,67028.0,67027.0,1.61071611]
[1721711124161,0.025,67028.0,67027.0,1.32632911]
[1721711124361,0.025,67028.0,67027.0,0.97994211]
[1721711124972,0.025,67028.0,67027.0,1.34032911]
[1721711125647,0.025,67028.0,67027.0,1.29232911]
[1721711126054,0.025,67028.0,67027.0,1.34032911]
[1721711126259,0.025,67028.0,67027.0,1.32632911]
[1721711126546,0.025,67028.0,67027.0,1.34032911]
[1721711126754,0.025,67028.0,67027.0,0.46138256]
[1721711126966,0.025,67028.0,67027.0,0.31441991]
[1721711127165,0.025,67028.0,67027.0,0.49161291]
[1721711127399,0.025,67028.0,67027.0,0.78999991]
[1721711127554,0.025,67028.0,67027.0,0.78297946]
[1721711127758,0.025,67028.0,67027.0,0.79697946]
[1721711127953,0.025,67028.0,67027.0,0.89533806]
[1721711128328,0.025,67028.0,67027.0,0.90933806]
[1721711128530,0.025,67028.0,67027.0,0.89533806]
[1721711128759,0.025,67028.0,67027.0,0.59695106]
[1721711129210,0.025,67028.0,67027.0,0.44775806]
[1721711129408,0.025,67028.0,67027.0,0.1814]
[1721711129632,0.025,67028.0,67027.0,0.47059246]
[1721711129824,0.025,67028.0,67027.0,0.83297946]
[1721711130025,0.025,67028.0,67027.0,0.54161291]
[1721711130246,0.025,67028.0,67027.0,0.61231216]